[Event "Titled Tuesday Blitz June 6 Late 2023"]
[White "Yeritsyan, Hayk"]
[Black "Di Benedetto, Edoardo"]
[WhiteFideId "13307320"]
[BlackFideId "875740"]
[WhiteElo "2482"]
[BlackElo "2296"]
[Result "0-1"]
[Round "3"]
[TimeControl "180+2"]
[Date "2023.06.07"]
[WhiteClock "0:00:03"]
[BlackClock "0:00:16"]
[Board "49"]

1. d4 {[%clk 0:03:00]}  d5 {[%clk 0:02:57]} 2. Nf3 {[%clk 0:03:01]}  Nf6 {[%clk 0:02:57]} 3. e3 {[%clk 0:03:01]}  c5 {[%clk 0:02:57]} 4. Bd3 {[%clk 0:03:02]}  Nc6 {[%clk 0:02:57]} 5. c3 {[%clk 0:03:02]}  Bg4 {[%clk 0:02:57]} 6. Nbd2 {[%clk 0:03:02]}  e6 {[%clk 0:02:57]} 7. Qa4 {[%clk 0:03:03]}  Bxf3 {[%clk 0:02:55]} 8. Nxf3 {[%clk 0:03:04]}  a6 {[%clk 0:02:54]} 9. Ne5 {[%clk 0:03:02]}  Qc7 {[%clk 0:02:53]} 10. Bb5 {[%clk 0:02:57]}  Rc8 {[%clk 0:02:28]} 11. Bxc6+ {[%clk 0:02:55]}  bxc6 {[%clk 0:02:29]} 12. Qxa6 {[%clk 0:02:55]}  Bd6 {[%clk 0:02:29]} 13. Nf3 {[%clk 0:02:54]}  O-O {[%clk 0:02:28]} 14. dxc5 {[%clk 0:02:54]}  Bxc5 {[%clk 0:02:23]} 15. b3 {[%clk 0:02:54]}  e5 {[%clk 0:02:23]} 16. Bb2 {[%clk 0:02:54]}  e4 {[%clk 0:02:19]} 17. Nd4 {[%clk 0:02:53]}  Ng4 {[%clk 0:02:17]} 18. h3 {[%clk 0:02:09]}  Ne5 {[%clk 0:02:14]} 19. Qe2 {[%clk 0:01:32]}  Nd3+ {[%clk 0:02:11]} 20. Kf1 {[%clk 0:01:32]}  Qd7 {[%clk 0:02:03]} 21. Rd1 {[%clk 0:01:22]}  f5 {[%clk 0:01:58]} 22. f4 {[%clk 0:01:11]}  Bd6 {[%clk 0:01:39]} 23. Rxd3 {[%clk 0:01:06]}  exd3 {[%clk 0:01:39]} 24. Qxd3 {[%clk 0:01:07]}  c5 {[%clk 0:01:35]} 25. Nb5 {[%clk 0:01:02]}  Bb8 {[%clk 0:01:11]} 26. c4 {[%clk 0:00:55]}  Rfd8 {[%clk 0:01:11]} 27. Qxd5+ {[%clk 0:00:39]}  Qxd5 {[%clk 0:01:10]} 28. cxd5 {[%clk 0:00:39]}  Rxd5 {[%clk 0:01:10]} 29. Ke2 {[%clk 0:00:39]}  c4 {[%clk 0:01:11]} 30. Nc3 {[%clk 0:00:37]}  Rd7 {[%clk 0:00:58]} 31. b4 {[%clk 0:00:32]}  Ba7 {[%clk 0:00:58]} 32. Rd1 {[%clk 0:00:18]}  Rcd8 {[%clk 0:00:57]} 33. Rxd7 {[%clk 0:00:16]}  Rxd7 {[%clk 0:00:58]} 34. Nb5 {[%clk 0:00:17]}  Bb6 {[%clk 0:00:55]} 35. Bd4 {[%clk 0:00:17]}  Bd8 {[%clk 0:00:52]} 36. Kd2 {[%clk 0:00:15]}  g5 {[%clk 0:00:43]} 37. g3 {[%clk 0:00:14]}  h5 {[%clk 0:00:43]} 38. fxg5 {[%clk 0:00:08]}  Bxg5 {[%clk 0:00:39]} 39. Kc3 {[%clk 0:00:09]}  Re7 {[%clk 0:00:35]} 40. Kxc4 {[%clk 0:00:08]}  Bxe3 {[%clk 0:00:35]} 41. Bxe3 {[%clk 0:00:06]}  Rxe3 {[%clk 0:00:36]} 42. a4 {[%clk 0:00:07]}  Rxg3 {[%clk 0:00:37]} 43. a5 {[%clk 0:00:07]}  Kf7 {[%clk 0:00:16]} 44. a6 {[%clk 0:00:07]}  Rg8 {[%clk 0:00:16]} 45. Nc7 {[%clk 0:00:03]}  Rc8 {[%clk 0:00:16]} 0-1


[Site "https://www.chess.com"]

[Event "Titled Tuesday Blitz June 6 Late 2023"]
[White "Arnaudov, G. Petar"]
[Black "i_like_explosions"]
[WhiteFideId "2907127"]
[WhiteElo "2430"]
[BlackElo "2478"]
[Result "1-0"]
[Round "3"]
[TimeControl "180+2"]
[Date "2023.06.07"]
[WhiteClock "0:01:00"]
[BlackClock "0:00:04"]
[Board "50"]

1. Nf3 {[%clk 0:03:00]}  Nf6 {[%clk 0:03:00]} 2. c4 {[%clk 0:02:54]}  g6 {[%clk 0:03:00]} 3. Nc3 {[%clk 0:02:53]}  d6 {[%clk 0:03:00]} 4. e4 {[%clk 0:02:54]}  Bg7 {[%clk 0:03:00]} 5. d4 {[%clk 0:02:54]}  O-O {[%clk 0:03:01]} 6. h3 {[%clk 0:02:55]}  e5 {[%clk 0:02:58]} 7. d5 {[%clk 0:02:55]}  a5 {[%clk 0:02:57]} 8. g4 {[%clk 0:02:54]}  Na6 {[%clk 0:02:56]} 9. Be3 {[%clk 0:02:55]}  Nd7 {[%clk 0:02:55]} 10. Rg1 {[%clk 0:02:54]}  Nac5 {[%clk 0:02:55]} 11. a3 {[%clk 0:02:54]}  a4 {[%clk 0:02:55]} 12. Nd2 {[%clk 0:02:54]}  Nb6 {[%clk 0:02:53]} 13. Qc2 {[%clk 0:02:44]}  Bd7 {[%clk 0:02:48]} 14. O-O-O {[%clk 0:02:43]}  c6 {[%clk 0:02:37]} 15. h4 {[%clk 0:02:43]}  cxd5 {[%clk 0:02:37]} 16. exd5 {[%clk 0:02:43]}  Kh8 {[%clk 0:02:33]} 17. h5 {[%clk 0:02:40]}  g5 {[%clk 0:02:04]} 18. h6 {[%clk 0:02:37]}  Bf6 {[%clk 0:02:01]} 19. Nde4 {[%clk 0:02:37]}  Nxe4 {[%clk 0:01:57]} 20. Qxe4 {[%clk 0:02:35]}  Be7 {[%clk 0:01:54]} 21. Qc2 {[%clk 0:02:01]}  Qc7 {[%clk 0:01:43]} 22. Bxb6 {[%clk 0:01:57]}  Qxb6 {[%clk 0:01:41]} 23. Bd3 {[%clk 0:01:57]}  Rac8 {[%clk 0:01:22]} 24. Kb1 {[%clk 0:01:56]}  Qb3 {[%clk 0:01:15]} 25. Rc1 {[%clk 0:01:34]}  Bd8 {[%clk 0:00:47]} 26. Qe2 {[%clk 0:01:31]}  f6 {[%clk 0:00:43]} 27. Ne4 {[%clk 0:01:20]}  Be7 {[%clk 0:00:40]} 28. Ng3 {[%clk 0:01:19]}  Be8 {[%clk 0:00:29]} 29. Nf5 {[%clk 0:01:17]}  Rc7 {[%clk 0:00:29]} 30. c5 {[%clk 0:01:07]}  dxc5 {[%clk 0:00:13]} 31. d6 {[%clk 0:01:06]}  Bxd6 {[%clk 0:00:08]} 32. Nxd6 {[%clk 0:01:07]}  Rd7 {[%clk 0:00:07]} 33. Bc4 {[%clk 0:01:05]}  Qb6 {[%clk 0:00:04]} 34. Nxe8 {[%clk 0:01:04]}  Rxe8 {[%clk 0:00:04]} 35. Bb5 {[%clk 0:01:00]} 1-0


[Site "https://www.chess.com"]

[Event "Titled Tuesday Blitz June 6 Late 2023"]
[White "Kokoszczynski, Jan"]
[Black "Nazari, Arad"]
[WhiteFideId "1174460"]
[BlackFideId "12577324"]
[WhiteElo "2139"]
[BlackElo "2175"]
[Result "0-1"]
[Round "3"]
[TimeControl "180+2"]
[Date "2023.06.07"]
[WhiteClock "0:00:03"]
[BlackClock "0:00:29"]
[Board "51"]

1. d4 {[%clk 0:03:00]}  Nf6 {[%clk 0:02:58]} 2. c4 {[%clk 0:03:00]}  g6 {[%clk 0:02:59]} 3. Nc3 {[%clk 0:03:00]}  d5 {[%clk 0:02:59]} 4. cxd5 {[%clk 0:03:00]}  Nxd5 {[%clk 0:03:00]} 5. e4 {[%clk 0:03:00]}  Nxc3 {[%clk 0:03:01]} 6. bxc3 {[%clk 0:03:01]}  Bg7 {[%clk 0:03:02]} 7. Qa4+ {[%clk 0:03:02]}  Nd7 {[%clk 0:02:59]} 8. Nf3 {[%clk 0:03:01]}  O-O {[%clk 0:02:59]} 9. Be2 {[%clk 0:03:00]}  a6 {[%clk 0:02:59]} 10. O-O {[%clk 0:02:57]}  b5 {[%clk 0:02:59]} 11. Qc2 {[%clk 0:02:30]}  c5 {[%clk 0:02:58]} 12. d5 {[%clk 0:02:26]}  c4 {[%clk 0:02:48]} 13. Be3 {[%clk 0:02:23]}  Qc7 {[%clk 0:02:41]} 14. Bd4 {[%clk 0:02:20]}  Ne5 {[%clk 0:02:34]} 15. Nxe5 {[%clk 0:02:16]}  Bxe5 {[%clk 0:02:34]} 16. Qd2 {[%clk 0:02:11]}  Bxh2+ {[%clk 0:02:32]} 17. Kh1 {[%clk 0:02:11]}  Bf4 {[%clk 0:02:33]} 18. Qb2 {[%clk 0:02:08]}  e6 {[%clk 0:02:32]} 19. a4 {[%clk 0:02:01]}  exd5 {[%clk 0:02:04]} 20. axb5 {[%clk 0:02:01]}  dxe4 {[%clk 0:01:56]} 21. b6 {[%clk 0:02:01]}  Qe7 {[%clk 0:01:52]} 22. g3 {[%clk 0:01:11]}  Bb7 {[%clk 0:01:40]} 23. Kg1 {[%clk 0:01:11]}  Qg5 {[%clk 0:01:22]} 24. Bxc4 {[%clk 0:01:11]}  e3 {[%clk 0:01:22]} 25. f3 {[%clk 0:00:55]}  Bxg3 {[%clk 0:01:10]} 26. Qg2 {[%clk 0:00:54]}  Bf2+ {[%clk 0:01:09]} 27. Rxf2 {[%clk 0:00:54]}  exf2+ {[%clk 0:01:09]} 28. Kxf2 {[%clk 0:00:49]}  Qxg2+ {[%clk 0:01:05]} 29. Kxg2 {[%clk 0:00:50]}  a5 {[%clk 0:00:59]} 30. Bb5 {[%clk 0:00:41]}  Rfc8 {[%clk 0:00:55]} 31. Kf2 {[%clk 0:00:39]}  h5 {[%clk 0:00:47]} 32. c4 {[%clk 0:00:21]}  a4 {[%clk 0:00:47]} 33. Ra3 {[%clk 0:00:20]}  Rd8 {[%clk 0:00:34]} 34. Bf6 {[%clk 0:00:17]}  Rd6 {[%clk 0:00:33]} 35. Be5 {[%clk 0:00:04]}  Rxb6 {[%clk 0:00:33]} 36. f4 {[%clk 0:00:05]}  Bc6 {[%clk 0:00:29]} 37. Bxc6 {[%clk 0:00:02]}  Rxc6 {[%clk 0:00:29]} 38. Ke3 {[%clk 0:00:02]}  Rxc4 {[%clk 0:00:29]} 39. Kd3 {[%clk 0:00:03]}  Rb4 {[%clk 0:00:29]} 0-1


[Site "https://www.chess.com"]

[Event "Titled Tuesday Blitz June 6 Late 2023"]
[White "szachmistrz2500"]
[Black "laziestwin"]
[WhiteElo "2464"]
[BlackElo "2671"]
[Result "0-1"]
[Round "3"]
[TimeControl "180+2"]
[Date "2023.06.07"]
[WhiteClock "0:00:31"]
[BlackClock "0:00:45"]
[Board "52"]

1. d4 {[%clk 0:03:00]}  d5 {[%clk 0:02:59]} 2. Nf3 {[%clk 0:03:00]}  Nf6 {[%clk 0:02:59]} 3. c4 {[%clk 0:03:00]}  c6 {[%clk 0:02:59]} 4. Qc2 {[%clk 0:02:59]}  g6 {[%clk 0:02:58]} 5. Nc3 {[%clk 0:02:58]}  Bg7 {[%clk 0:02:57]} 6. Bf4 {[%clk 0:02:57]}  O-O {[%clk 0:02:57]} 7. e3 {[%clk 0:02:56]}  c5 {[%clk 0:02:58]} 8. dxc5 {[%clk 0:02:54]}  Qa5 {[%clk 0:02:58]} 9. Be2 {[%clk 0:02:45]}  Ne4 {[%clk 0:02:46]} 10. O-O {[%clk 0:02:43]}  Nxc3 {[%clk 0:02:46]} 11. bxc3 {[%clk 0:02:43]}  dxc4 {[%clk 0:02:46]} 12. Bxc4 {[%clk 0:02:38]}  Qxc5 {[%clk 0:02:46]} 13. Bxb8 {[%clk 0:02:16]}  Rxb8 {[%clk 0:02:32]} 14. Qb3 {[%clk 0:02:15]}  b5 {[%clk 0:02:26]} 15. Be2 {[%clk 0:01:38]}  Be6 {[%clk 0:02:23]} 16. Qc2 {[%clk 0:01:30]}  Qxc3 {[%clk 0:02:21]} 17. Qxc3 {[%clk 0:01:22]}  Bxc3 {[%clk 0:02:22]} 18. Rab1 {[%clk 0:01:23]}  b4 {[%clk 0:02:17]} 19. Nd4 {[%clk 0:00:45]}  Bxa2 {[%clk 0:02:09]} 20. Nc6 {[%clk 0:00:46]}  Bxb1 {[%clk 0:01:13]} 21. Nxb8 {[%clk 0:00:44]}  Be4 {[%clk 0:01:04]} 22. Na6 {[%clk 0:00:44]}  Rc8 {[%clk 0:00:51]} 23. f3 {[%clk 0:00:44]}  Bc2 {[%clk 0:00:47]} 24. Bd1 {[%clk 0:00:31]}  b3 {[%clk 0:00:45]} 0-1


[Site "https://www.chess.com"]

[Event "Titled Tuesday Blitz June 6 Late 2023"]
[White "Vega Gutierrez, Sabrina"]
[Black "Martins, Bruno Andre Leite"]
[WhiteFideId "2219026"]
[BlackFideId "1942255"]
[WhiteElo "2209"]
[BlackElo "2241"]
[Result "0-1"]
[Round "3"]
[TimeControl "180+2"]
[Date "2023.06.07"]
[WhiteClock "0:00:02"]
[BlackClock "0:00:16"]
[Board "54"]

1. e4 {[%clk 0:03:00]}  c5 {[%clk 0:02:56]} 2. Nf3 {[%clk 0:03:01]}  d6 {[%clk 0:02:56]} 3. d4 {[%clk 0:03:02]}  cxd4 {[%clk 0:02:56]} 4. Nxd4 {[%clk 0:03:02]}  e5 {[%clk 0:02:53]} 5. Nf3 {[%clk 0:02:52]}  Nc6 {[%clk 0:02:51]} 6. Nc3 {[%clk 0:02:38]}  Be6 {[%clk 0:02:44]} 7. Nd5 {[%clk 0:02:23]}  Be7 {[%clk 0:02:34]} 8. Bc4 {[%clk 0:02:05]}  Nf6 {[%clk 0:02:32]} 9. Nxf6+ {[%clk 0:02:03]}  Bxf6 {[%clk 0:02:33]} 10. Bxe6 {[%clk 0:02:03]}  fxe6 {[%clk 0:02:34]} 11. O-O {[%clk 0:02:03]}  O-O {[%clk 0:02:33]} 12. c3 {[%clk 0:02:03]}  d5 {[%clk 0:02:23]} 13. Qe2 {[%clk 0:02:02]}  Qc7 {[%clk 0:02:10]} 14. Rd1 {[%clk 0:02:00]}  Rad8 {[%clk 0:02:04]} 15. Bg5 {[%clk 0:01:58]}  h6 {[%clk 0:01:48]} 16. Bxf6 {[%clk 0:01:56]}  Rxf6 {[%clk 0:01:49]} 17. Rd3 {[%clk 0:01:49]}  Rf7 {[%clk 0:01:42]} 18. Re1 {[%clk 0:01:45]}  d4 {[%clk 0:01:28]} 19. cxd4 {[%clk 0:01:16]}  exd4 {[%clk 0:01:29]} 20. e5 {[%clk 0:01:16]}  Rfd7 {[%clk 0:01:20]} 21. a3 {[%clk 0:00:57]}  Rd5 {[%clk 0:01:11]} 22. h4 {[%clk 0:00:53]}  Qf7 {[%clk 0:01:10]} 23. Qe4 {[%clk 0:00:53]}  Rf8 {[%clk 0:00:51]} 24. Red1 {[%clk 0:00:33]}  Qf4 {[%clk 0:00:49]} 25. Qxf4 {[%clk 0:00:31]}  Rxf4 {[%clk 0:00:50]} 26. g3 {[%clk 0:00:32]}  Re4 {[%clk 0:00:49]} 27. Kf1 {[%clk 0:00:25]}  Kf7 {[%clk 0:00:41]} 28. R1d2 {[%clk 0:00:12]}  Ke7 {[%clk 0:00:34]} 29. Re2 {[%clk 0:00:06]}  Rxe2 {[%clk 0:00:31]} 30. Kxe2 {[%clk 0:00:07]}  Nxe5 {[%clk 0:00:30]} 31. Rxd4 {[%clk 0:00:08]}  Nxf3 {[%clk 0:00:20]} 32. Rxd5 {[%clk 0:00:07]}  Ng1+ {[%clk 0:00:21]} 33. Kf1 {[%clk 0:00:07]}  exd5 {[%clk 0:00:21]} 34. Kxg1 {[%clk 0:00:08]}  Ke6 {[%clk 0:00:21]} 35. Kf1 {[%clk 0:00:08]}  Ke5 {[%clk 0:00:22]} 36. Ke2 {[%clk 0:00:09]}  Ke4 {[%clk 0:00:21]} 37. h5 {[%clk 0:00:09]}  a5 {[%clk 0:00:18]} 38. f3+ {[%clk 0:00:09]}  Kd4 {[%clk 0:00:18]} 39. Kd2 {[%clk 0:00:09]}  a4 {[%clk 0:00:18]} 40. Ke2 {[%clk 0:00:03]}  Kc4 {[%clk 0:00:18]} 41. Ke3 {[%clk 0:00:03]}  Kb3 {[%clk 0:00:15]} 42. f4 {[%clk 0:00:04]}  Kxb2 {[%clk 0:00:15]} 43. g4 {[%clk 0:00:04]}  Kc3 {[%clk 0:00:13]} 44. g5 {[%clk 0:00:04]}  d4+ {[%clk 0:00:14]} 45. Ke4 {[%clk 0:00:04]}  hxg5 {[%clk 0:00:15]} 46. fxg5 {[%clk 0:00:04]}  d3 {[%clk 0:00:15]} 47. h6 {[%clk 0:00:04]}  gxh6 {[%clk 0:00:16]} 48. gxh6 {[%clk 0:00:05]}  d2 {[%clk 0:00:17]} 49. h7 {[%clk 0:00:06]}  d1=Q {[%clk 0:00:17]} 50. h8=Q+ {[%clk 0:00:06]}  Kb3 {[%clk 0:00:16]} 51. Qc8 {[%clk 0:00:02]}  Qc2+ {[%clk 0:00:15]} 52. Qxc2+ {[%clk 0:00:01]}  Kxc2 {[%clk 0:00:16]} 53. Kd4 {[%clk 0:00:02]}  Kb3 {[%clk 0:00:16]} 0-1


[Site "https://www.chess.com"]

[Event "Titled Tuesday Blitz June 6 Late 2023"]
[White "Nakamura, Hikaru"]
[Black "Martinez Reyes, Pedro Ramon"]
[WhiteFideId "2016192"]
[BlackFideId "3901807"]
[WhiteElo "2874"]
[BlackElo "2340"]
[Result "1-0"]
[Round "3"]
[TimeControl "180+2"]
[Date "2023.06.07"]
[WhiteClock "0:01:40"]
[BlackClock "0:00:33"]
[Board "58"]

1. g3 {[%clk 0:03:00]}  e6 {[%clk 0:02:55]} 2. e4 {[%clk 0:02:59]}  d5 {[%clk 0:02:55]} 3. e5 {[%clk 0:03:00]}  c5 {[%clk 0:02:54]} 4. f4 {[%clk 0:03:00]}  h5 {[%clk 0:02:52]} 5. c3 {[%clk 0:02:59]}  h4 {[%clk 0:02:51]} 6. g4 {[%clk 0:02:59]}  h3 {[%clk 0:02:42]} 7. Nf3 {[%clk 0:02:58]}  Nh6 {[%clk 0:02:41]} 8. Rg1 {[%clk 0:02:57]}  c4 {[%clk 0:02:35]} 9. d4 {[%clk 0:02:55]}  cxd3 {[%clk 0:02:35]} 10. Be3 {[%clk 0:02:55]}  Bd7 {[%clk 0:02:13]} 11. Bxd3 {[%clk 0:02:47]}  Na6 {[%clk 0:02:08]} 12. b4 {[%clk 0:02:39]}  Nc7 {[%clk 0:02:03]} 13. Nd4 {[%clk 0:02:39]}  a6 {[%clk 0:01:58]} 14. a4 {[%clk 0:02:38]}  Qh4+ {[%clk 0:01:41]} 15. Kf1 {[%clk 0:02:27]}  Qe7 {[%clk 0:01:35]} 16. Nd2 {[%clk 0:02:25]}  a5 {[%clk 0:01:28]} 17. b5 {[%clk 0:02:22]}  Rc8 {[%clk 0:01:24]} 18. N2b3 {[%clk 0:02:08]}  b6 {[%clk 0:01:07]} 19. Nf3 {[%clk 0:02:06]}  Na8 {[%clk 0:01:05]} 20. Qd2 {[%clk 0:02:00]}  Qd8 {[%clk 0:01:04]} 21. Rg3 {[%clk 0:01:58]}  Ng8 {[%clk 0:01:03]} 22. f5 {[%clk 0:01:56]}  Qc7 {[%clk 0:01:03]} 23. Rc1 {[%clk 0:01:56]}  Ne7 {[%clk 0:00:59]} 24. Nbd4 {[%clk 0:01:54]}  Ng8 {[%clk 0:00:38]} 25. c4 {[%clk 0:01:45]}  Qb7 {[%clk 0:00:36]} 26. fxe6 {[%clk 0:01:43]}  fxe6 {[%clk 0:00:33]} 27. Bg6+ {[%clk 0:01:41]}  Kd8 {[%clk 0:00:34]} 28. Ng5 {[%clk 0:01:42]}  Nh6 {[%clk 0:00:33]} 29. Ndxe6+ {[%clk 0:01:40]} 1-0


[Site "https://www.chess.com"]

[Event "Titled Tuesday Blitz June 6 Late 2023"]
[White "Gheorghiu, Calin"]
[Black "Andreikin, Dmitry"]
[WhiteFideId "1200305"]
[BlackFideId "4158814"]
[WhiteElo "2204"]
[BlackElo "2736"]
[Result "0-1"]
[Round "3"]
[TimeControl "180+2"]
[Date "2023.06.07"]
[WhiteClock "0:00:55"]
[BlackClock "0:02:28"]
[Board "59"]

1. d4 {[%clk 0:02:59]}  Nf6 {[%clk 0:02:59]} 2. Nf3 {[%clk 0:02:58]}  g6 {[%clk 0:03:00]} 3. Nc3 {[%clk 0:02:56]}  d5 {[%clk 0:02:59]} 4. Bf4 {[%clk 0:02:56]}  Bg7 {[%clk 0:02:59]} 5. Nb5 {[%clk 0:02:55]}  Na6 {[%clk 0:02:58]} 6. e3 {[%clk 0:02:56]}  O-O {[%clk 0:02:57]} 7. Be2 {[%clk 0:02:55]}  c6 {[%clk 0:02:57]} 8. Nc3 {[%clk 0:02:55]}  b6 {[%clk 0:02:57]} 9. a4 {[%clk 0:02:53]}  Nb4 {[%clk 0:02:53]} 10. O-O {[%clk 0:02:49]}  a5 {[%clk 0:02:52]} 11. Ne5 {[%clk 0:02:49]}  Nd7 {[%clk 0:02:51]} 12. Nxd7 {[%clk 0:02:44]}  Bxd7 {[%clk 0:02:52]} 13. Nb1 {[%clk 0:02:43]}  Bf5 {[%clk 0:02:33]} 14. c3 {[%clk 0:02:36]}  Na6 {[%clk 0:02:33]} 15. h3 {[%clk 0:02:15]}  Re8 {[%clk 0:02:33]} 16. Nd2 {[%clk 0:01:59]}  e5 {[%clk 0:02:33]} 17. dxe5 {[%clk 0:02:00]}  Bxe5 {[%clk 0:02:32]} 18. Bxe5 {[%clk 0:02:00]}  Rxe5 {[%clk 0:02:33]} 19. Re1 {[%clk 0:01:55]}  Nc5 {[%clk 0:02:32]} 20. c4 {[%clk 0:01:50]}  dxc4 {[%clk 0:02:25]} 21. Nxc4 {[%clk 0:01:47]}  Rd5 {[%clk 0:02:25]} 22. Qc1 {[%clk 0:01:34]}  Nb3 {[%clk 0:02:25]} 23. Qc3 {[%clk 0:01:35]}  Nxa1 {[%clk 0:02:26]} 24. Rxa1 {[%clk 0:01:31]}  b5 {[%clk 0:02:26]} 25. axb5 {[%clk 0:01:28]}  cxb5 {[%clk 0:02:27]} 26. Nxa5 {[%clk 0:01:28]}  b4 {[%clk 0:02:27]} 27. Qxb4 {[%clk 0:01:01]}  Rdxa5 {[%clk 0:02:27]} 28. Rd1 {[%clk 0:01:02]}  Ra1 {[%clk 0:02:26]} 29. Rxa1 {[%clk 0:00:59]}  Rxa1+ {[%clk 0:02:27]} 30. Kh2 {[%clk 0:00:59]}  Ra8 {[%clk 0:02:28]} 31. Bf3 {[%clk 0:00:55]}  Qb8+ {[%clk 0:02:28]} 0-1


[Site "https://www.chess.com"]

[Event "Titled Tuesday Blitz June 6 Late 2023"]
[White "Zhigalko, Sergei"]
[Black "Janaszak, Dawid"]
[WhiteFideId "13502956"]
[BlackFideId "1119206"]
[WhiteElo "2626"]
[BlackElo "2220"]
[Result "1-0"]
[Round "3"]
[TimeControl "180+2"]
[Date "2023.06.07"]
[WhiteClock "0:00:07"]
[BlackClock "0:00:19"]
[Board "61"]

1. e4 {[%clk 0:03:00]}  g6 {[%clk 0:03:00]} 2. d4 {[%clk 0:03:01]}  Bg7 {[%clk 0:03:01]} 3. Nc3 {[%clk 0:03:01]}  c6 {[%clk 0:03:01]} 4. Nf3 {[%clk 0:03:02]}  d5 {[%clk 0:03:01]} 5. h3 {[%clk 0:03:02]}  dxe4 {[%clk 0:02:59]} 6. Nxe4 {[%clk 0:03:03]}  Nd7 {[%clk 0:02:59]} 7. Bd3 {[%clk 0:03:03]}  Ngf6 {[%clk 0:02:59]} 8. c3 {[%clk 0:03:03]}  Nxe4 {[%clk 0:03:00]} 9. Bxe4 {[%clk 0:03:04]}  O-O {[%clk 0:02:59]} 10. O-O {[%clk 0:03:04]}  Qc7 {[%clk 0:02:57]} 11. Re1 {[%clk 0:03:03]}  Nf6 {[%clk 0:02:56]} 12. Bc2 {[%clk 0:03:02]}  e6 {[%clk 0:02:55]} 13. Ne5 {[%clk 0:02:56]}  Nd7 {[%clk 0:02:47]} 14. Nd3 {[%clk 0:02:46]}  e5 {[%clk 0:02:26]} 15. dxe5 {[%clk 0:02:38]}  Nxe5 {[%clk 0:02:25]} 16. Bf4 {[%clk 0:02:35]}  f6 {[%clk 0:02:23]} 17. Bb3+ {[%clk 0:02:06]}  Kh8 {[%clk 0:02:22]} 18. Qe2 {[%clk 0:02:01]}  Re8 {[%clk 0:02:01]} 19. Rad1 {[%clk 0:01:47]}  Bf5 {[%clk 0:02:01]} 20. Nxe5 {[%clk 0:01:47]}  fxe5 {[%clk 0:02:01]} 21. Bg3 {[%clk 0:01:42]}  a5 {[%clk 0:01:53]} 22. a4 {[%clk 0:01:12]}  Qb6 {[%clk 0:01:53]} 23. Ba2 {[%clk 0:01:12]}  Qc5 {[%clk 0:01:39]} 24. Bh4 {[%clk 0:00:45]}  h6 {[%clk 0:01:33]} 25. g4 {[%clk 0:00:37]}  Be6 {[%clk 0:01:26]} 26. Bxe6 {[%clk 0:00:36]}  Rxe6 {[%clk 0:01:27]} 27. Qe4 {[%clk 0:00:29]}  g5 {[%clk 0:01:17]} 28. Bg3 {[%clk 0:00:29]}  Re7 {[%clk 0:01:11]} 29. Re2 {[%clk 0:00:25]}  Rf8 {[%clk 0:01:11]} 30. Red2 {[%clk 0:00:25]}  Ref7 {[%clk 0:01:07]} 31. Kg2 {[%clk 0:00:25]}  Qb6 {[%clk 0:01:03]} 32. Qc4 {[%clk 0:00:22]}  Rf3 {[%clk 0:00:49]} 33. Re2 {[%clk 0:00:20]}  Qc7 {[%clk 0:00:45]} 34. Qe4 {[%clk 0:00:17]}  Qf7 {[%clk 0:00:43]} 35. Rdd2 {[%clk 0:00:14]}  Kg8 {[%clk 0:00:41]} 36. Bxe5 {[%clk 0:00:11]}  Bxe5 {[%clk 0:00:39]} 37. Qxe5 {[%clk 0:00:12]}  Rf6 {[%clk 0:00:26]} 38. Qe3 {[%clk 0:00:09]}  Qc4 {[%clk 0:00:24]} 39. Qd4 {[%clk 0:00:05]}  Qf7 {[%clk 0:00:22]} 40. Qe5 {[%clk 0:00:05]}  Qc4 {[%clk 0:00:20]} 41. Qxa5 {[%clk 0:00:03]}  Rf3 {[%clk 0:00:19]} 42. Qe5 {[%clk 0:00:02]}  Qf7 {[%clk 0:00:18]} 43. Qd4 {[%clk 0:00:02]}  Kh7 {[%clk 0:00:17]} 44. b4 {[%clk 0:00:02]}  b6 {[%clk 0:00:17]} 45. Kg1 {[%clk 0:00:02]}  Rxh3 {[%clk 0:00:17]} 46. Qe4+ {[%clk 0:00:02]}  Kg8 {[%clk 0:00:17]} 47. Qe6 {[%clk 0:00:02]}  Rh4 {[%clk 0:00:16]} 48. Qxf7+ {[%clk 0:00:02]}  Rxf7 {[%clk 0:00:17]} 49. Rd4 {[%clk 0:00:03]}  h5 {[%clk 0:00:17]} 50. gxh5 {[%clk 0:00:03]}  Rxh5 {[%clk 0:00:18]} 51. Re3 {[%clk 0:00:03]}  Rfh7 {[%clk 0:00:18]} 52. Rg3 {[%clk 0:00:03]}  Rh1+ {[%clk 0:00:18]} 53. Kg2 {[%clk 0:00:03]}  R7h5 {[%clk 0:00:18]} 54. Kf3 {[%clk 0:00:03]}  Ra1 {[%clk 0:00:17]} 55. Rc4 {[%clk 0:00:03]}  c5 {[%clk 0:00:17]} 56. bxc5 {[%clk 0:00:03]}  bxc5 {[%clk 0:00:17]} 57. Rxc5 {[%clk 0:00:03]}  Rxa4 {[%clk 0:00:18]} 58. Rcxg5+ {[%clk 0:00:03]}  Rxg5 {[%clk 0:00:18]} 59. Rxg5+ {[%clk 0:00:04]}  Kf7 {[%clk 0:00:19]} 60. Ke3 {[%clk 0:00:04]}  Rc4 {[%clk 0:00:18]} 61. Kd3 {[%clk 0:00:04]}  Rf4 {[%clk 0:00:19]} 62. Rg2 {[%clk 0:00:04]}  Ke6 {[%clk 0:00:20]} 63. Ke3 {[%clk 0:00:04]}  Rc4 {[%clk 0:00:19]} 64. Kd3 {[%clk 0:00:04]}  Rf4 {[%clk 0:00:19]} 65. Rh2 {[%clk 0:00:04]}  Kd5 {[%clk 0:00:18]} 66. Rh5+ {[%clk 0:00:04]}  Kd6 {[%clk 0:00:19]} 67. Ke3 {[%clk 0:00:04]}  Rc4 {[%clk 0:00:19]} 68. Kd3 {[%clk 0:00:04]}  Rf4 {[%clk 0:00:19]} 69. Rh2 {[%clk 0:00:05]}  Kd5 {[%clk 0:00:19]} 70. Ke2 {[%clk 0:00:05]}  Kc4 {[%clk 0:00:19]} 71. Rh8 {[%clk 0:00:05]}  Kxc3 {[%clk 0:00:19]} 72. Rd8 {[%clk 0:00:05]}  Rf7 {[%clk 0:00:18]} 73. f3 {[%clk 0:00:05]}  Kc4 {[%clk 0:00:18]} 74. Ke3 {[%clk 0:00:05]}  Kc5 {[%clk 0:00:18]} 75. f4 {[%clk 0:00:05]}  Kc6 {[%clk 0:00:18]} 76. Ke4 {[%clk 0:00:05]}  Kc7 {[%clk 0:00:19]} 77. Rd1 {[%clk 0:00:05]}  Re7+ {[%clk 0:00:18]} 78. Kf5 {[%clk 0:00:06]}  Re2 {[%clk 0:00:18]} 79. Kf6 {[%clk 0:00:06]}  Kc8 {[%clk 0:00:17]} 80. f5 {[%clk 0:00:06]}  Rg2 {[%clk 0:00:16]} 81. Kf7 {[%clk 0:00:06]}  Rf2 {[%clk 0:00:17]} 82. f6 {[%clk 0:00:06]}  Rg2 {[%clk 0:00:17]} 83. Kf8 {[%clk 0:00:07]}  Rf2 {[%clk 0:00:17]} 84. f7 {[%clk 0:00:07]}  Rg2 {[%clk 0:00:18]} 85. Rd5 {[%clk 0:00:07]}  Kc7 {[%clk 0:00:18]} 86. Ke7 {[%clk 0:00:07]}  Re2+ {[%clk 0:00:18]} 87. Kf6 {[%clk 0:00:07]}  Rf2+ {[%clk 0:00:19]} 88. Rf5 {[%clk 0:00:07]} 1-0


[Site "https://www.chess.com"]